bitfinex/quotes_SOLUSD_20250901
["timestamp","ask_amount","ask_price","bid_price","bid_amount"]
[1756717222531,2.89243296,203.49,203.48,0.03]
[1756717223147,13.59559401,203.48,203.45,0.03]
[1756717223450,28.35243296,203.46,203.45,0.03]
[1756717223650,13.59559401,203.45,203.43,0.03]
[1756717223828,2.35243296,203.44,203.43,0.03]
[1756717224251,39.59559401,203.4,203.29,0.71]
[1756717224459,2.35243296,203.31,203.3,4.91883915]
[1756717225058,26.0,203.4,203.3,4.91883915]
[1756717225262,2.35243296,203.37,203.32,2.35243296]
[1756717225562,2.35243296,203.39,203.33,3.06243296]
[1756717226269,2.35243296,203.38,203.34,4.91787154]
[1756717226561,2.35243296,203.38,203.34,5.62787154]
[1756717226735,2.35243296,203.38,203.34,17.9225504]
[1756717227132,13.59559401,203.4,203.34,17.9225504]
[1756717227332,2.35243296,203.41,203.35,3.06243296]
[1756717227574,13.59559401,203.45,203.39,26.0]
[1756717227791,2.35197068,203.4,203.39,26.0]
[1756717228278,2.35197068,203.4,203.39,30.91666256]
[1756717228466,13.59559401,203.41,203.39,30.91666256]
[1756717228665,2.35197068,203.4,203.39,30.91666256]
[1756717229380,18.80953537,203.4,203.31,12.29639431]
[1756717229556,2.35197068,203.32,203.28,4.9193231]
[1756717229879,2.35197068,203.29,203.28,17.92763085]
[1756717230046,2.35197068,203.3,203.28,17.92763085]
[1756717230247,2.35197068,203.3,203.28,17.21763085]
[1756717230453,4.91673774,203.39,203.27,5.11956097]
[1756717230454,0.51,203.33,203.27,5.11956097]
[1756717230680,2.35197068,203.28,203.27,5.11956097]
[1756717232047,16.45756469,203.28,203.27,0.2]
[1756717232252,16.45756469,203.28,203.22,4.92076562]
[1756717232471,2.35197068,203.23,203.22,4.92076562]
[1756717233054,2.35197068,203.23,203.22,5.63076562]
[1756717233255,2.35197068,203.24,203.22,5.63076562]
[1756717233454,13.59559401,203.29,203.22,4.92076562]
[1756717233662,2.35197068,203.23,203.22,4.92076562]
[1756717234280,2.35197068,203.23,203.21,4.92101766]
[1756717234479,14.10559401,203.29,203.21,5.63101766]
[1756717234686,2.35197068,203.23,203.21,5.63101766]
[1756717235293,13.59559401,203.29,203.22,0.71]
[1756717235581,2.35197068,203.27,203.22,0.71]
[1756717236580,2.35197068,203.28,203.23,19.57383752]
[1756717236787,2.35197068,203.28,203.24,0.71]
[1756717236985,2.35197068,203.28,203.23,17.22186684]
[1756717237181,39.59559401,203.32,203.23,17.22186684]
[1756717237182,13.59559401,203.35,203.25,3.06197068]
[1756717237488,2.35197068,203.3,203.26,0.71]
[1756717237687,2.35197068,203.3,203.27,0.71]
[1756717237984,26.0,203.34,203.28,0.71]
[1756717238185,2.35197068,203.3,203.28,0.71]
[1756717238558,2.35197068,203.29,203.23,39.4]
[1756717238785,2.35197068,203.25,203.23,39.4]
[1756717238960,2.35197068,203.25,203.23,40.11]
[1756717239682,2.35197068,203.25,203.24,0.71]
[1756717239884,2.86197068,203.25,203.2,4.92125984]
[1756717240094,2.35197068,203.21,203.2,4.92125984]
[1756717241973,5.0292614,203.21,203.19,0.12]
[1756717242194,5.0292614,203.2,203.19,0.12]
[1756717242400,5.0292614,203.2,203.19,5.04144723]
[1756717242818,5.0292614,203.22,203.19,18.05520233]
[1756717243024,135.70456292,203.27,203.21,17.22356182]
[1756717243025,5.0292614,203.25,203.21,17.22356182]
[1756717243308,5.0292614,203.22,203.21,17.22356182]
[1756717243486,13.62559401,203.27,203.21,17.22356182]
[1756717243694,5.0292614,203.23,203.21,17.93356182]
[1756717244094,5.0292614,203.23,203.21,17.22356182]
[1756717244292,5.0292614,203.23,203.22,0.71]
[1756717244826,5.0292614,203.23,203.21,17.22356182]
[1756717245127,5.0292614,203.22,203.2,4.92125984]
[1756717245315,5.0292614,203.23,203.2,17.22440944]
[1756717245925,5.0292614,203.23,203.21,0.71]
[1756717246091,5.0292614,203.23,203.22,0.71]
[1756717246512,13.62559401,203.27,203.22,0.71]
[1756717246820,5.0292614,203.23,203.22,0.71]
[1756717247211,5.0292614,203.23,203.22,4.92077551]
[1756717248214,5.0292614,203.23,203.19,0.12]
[1756717248215,5.0292614,203.23,203.2,4.92125984]
[1756717248422,5.0292614,203.21,203.2,4.92125984]
[1756717251610,13.59559401,203.24,203.2,4.92125984]
[1756717251816,5.0292614,203.21,203.2,4.92125984]
[1756717252420,5.0292614,203.21,203.2,5.58125984]
[1756717252595,5.0292614,203.21,203.2,4.92125984]
[1756717252926,5.0292614,203.21,203.2,5.58125984]
[1756717253219,5.0292614,203.21,203.2,4.92125984]
[1756717254729,5.0292614,203.21,203.19,0.12]
[1756717254894,0.51,203.24,203.19,0.12]
[1756717254895,5.0292614,203.2,203.19,0.12]
[1756717255229,5.0292614,203.2,203.19,5.04138131]
[1756717256311,19.13485541,203.2,203.19,0.12]
[1756717257126,14.10559401,203.2,203.19,0.12]
[1756717257326,19.13485541,203.2,203.19,0.12]
[1756717257531,18.62485541,203.2,203.19,5.04150204]
[1756717258332,5.0292614,203.21,203.19,5.04150204]
[1756717258700,26.51,203.24,203.19,5.04150204]
[1756717258701,5.0292614,203.24,203.2,0.66]
[1756717258902,5.0292614,203.24,203.21,0.66]
[1756717259626,5.0292614,203.23,203.21,0.66]
[1756717259811,5.0292614,203.23,203.19,17.34525714]
[1756717260128,5.0292614,203.23,203.2,0.66]
[1756717260331,5.0292614,203.21,203.19,5.04150204]
[1756717260499,109.70456292,203.27,203.2,0.66]
[1756717260819,5.0292614,203.23,203.19,17.34525714]
[1756717261023,5.0292614,203.2,203.19,5.04150204]
[1756717261208,5.0292614,203.2,203.19,0.12]
[1756717261405,19.13485541,203.2,203.19,0.12]
[1756717262008,109.70456292,203.27,203.19,5.04150204]
[1756717262205,26.0,203.24,203.19,5.04150204]
[1756717262521,3.49305208,203.21,203.19,5.04150204]
[1756717262917,109.70456292,203.27,203.2,0.66]
[1756717263116,0.03,203.27,203.22,3.49305208]
[1756717263337,0.03,203.27,203.23,0.66]
[1756717263529,3.52305208,203.27,203.23,0.66]
[1756717263733,3.52305208,203.27,203.24,0.66]
[1756717264252,0.03,203.27,203.24,0.66]
[1756717264540,0.03,203.27,203.25,4.9200492]
[1756717264953,4.00305208,203.26,203.23,4.92053338]
[1756717265156,3.49305208,203.24,203.23,4.92053338]
[1756717265454,3.49305208,203.25,203.23,4.92053338]
[1756717265747,3.49305208,203.24,203.23,4.92053338]
[1756717266153,13.59559401,203.23,203.19,0.12]
[1756717266359,5.58545119,203.2,203.19,0.12]
[1756717266826,5.58545119,203.2,203.19,5.04150204]
[1756717267156,13.59559401,203.21,203.19,5.04150204]
[1756717267360,5.58545119,203.2,203.19,5.04150204]
[1756717267519,13.59559401,203.24,203.2,0.66]
[1756717267820,5.58545119,203.24,203.2,0.66]
[1756717268022,5.58545119,203.25,203.2,0.66]
[1756717268350,5.58545119,203.26,203.2,6.24545119]
[1756717268519,5.61545119,203.27,203.21,23.46901301]
[1756717268729,5.61545119,203.27,203.22,6.24545119]
[1756717268730,0.03,203.27,203.22,6.24545119]
[1756717268923,0.03,203.27,203.23,6.24545119]
[1756717269432,0.03,203.27,203.24,0.66]
[1756717269639,5.58545119,203.25,203.21,17.22356182]
[1756717269834,5.58545119,203.24,203.21,17.22356182]
[1756717270031,5.58545119,203.25,203.22,0.66]
[1756717270646,5.58545119,203.24,203.23,4.92053338]
[1756717271450,5.58545119,203.24,203.2,4.92125984]
[1756717271743,5.58545119,203.24,203.21,0.66]
[1756717271941,39.49,203.27,203.22,0.66]
[1756717272139,45.07545119,203.27,203.23,0.66]
[1756717272630,45.07545119,203.27,203.24,4.92029128]
[1756717272950,5.58545119,203.26,203.24,4.92029128]
[1756717273539,0.03,203.27,203.24,4.92029128]
[1756717273540,0.03,203.27,203.25,0.66]
[1756717274053,0.03,203.27,203.24,4.92029128]
[1756717274233,0.03,203.27,203.25,0.66]
[1756717274638,0.03,203.27,203.26,4.91980714]
[1756717274828,0.03,203.27,203.26,5.57980714]
[1756717275245,0.03,203.27,203.26,4.91980714]
[1756717277246,0.03,203.27,203.24,4.92029128]
[1756717277428,0.03,203.27,203.24,5.58029128]
[1756717277635,0.03,203.27,203.25,0.66]
[1756717278160,0.03,203.27,203.26,0.66]
[1756717278349,0.03,203.27,203.26,6.24545119]
[1756717278738,0.03,203.27,203.26,0.66]
[1756717279360,0.03,203.27,203.26,5.57980714]
[1756717280366,0.03,203.32,203.26,23.46477618]
[1756717280567,0.03,203.32,203.29,5.58545119]
[1756717281165,0.03,203.32,203.3,0.66]
[1756717281350,0.03,203.32,203.31,4.91859721]
[1756717281663,0.03,203.32,203.31,11.1640484]
[1756717282874,0.03,203.32,203.31,5.57859721]
[1756717283041,0.03,203.32,203.31,11.1640484]
[1756717283551,5.58545119,203.37,203.31,23.46054144]
[1756717283883,5.58545119,203.39,203.34,5.58545119]
[1756717284085,5.58545119,203.39,203.34,6.30545119]
[1756717284373,5.58545119,203.39,203.35,0.72]
[1756717284540,5.58545119,203.41,203.36,0.72]
[1756717284744,5.58545119,203.41,203.37,0.72]
[1756717285165,5.58545119,203.4,203.37,0.72]
[1756717285551,5.58545119,203.4,203.38,4.91690431]
[1756717285766,5.58545119,203.41,203.38,4.91690431]
[1756717285973,3.48469606,203.41,203.39,0.72]
[1756717286169,26.51,203.45,203.39,0.72]
[1756717286472,3.48469606,203.43,203.38,20.69386116]
[1756717286777,3.48469606,203.42,203.38,17.2091651]
[1756717286988,3.48469606,203.41,203.38,17.2091651]
[1756717287484,14.10559401,203.46,203.38,17.9291651]
[1756717287653,3.48469606,203.39,203.38,4.91690431]
[1756717288164,3.48469606,203.39,203.36,4.91738788]
[1756717288366,3.48469606,203.37,203.36,4.91738788]
[1756717288560,3.99469606,203.37,203.33,4.91811341]
[1756717288757,3.48469606,203.35,203.33,4.91811341]
[1756717288959,3.48469606,203.35,203.33,5.63811341]
[1756717289461,3.48469606,203.35,203.33,4.91811341]
[1756717289655,3.48469606,203.34,203.32,17.21400162]
[1756717289856,3.48469606,203.34,203.32,17.93400162]
[1756717290056,5.57924707,203.35,203.32,17.93400162]
[1756717290373,5.57924707,203.34,203.32,17.21400162]
[1756717290571,5.57924707,203.36,203.33,0.72]
[1756717290760,5.57924707,203.38,203.34,0.72]
[1756717290960,5.57924707,203.38,203.35,0.72]
[1756717291685,5.57924707,203.38,203.36,4.91738788]
[1756717291869,5.57924707,203.37,203.36,4.91738788]
[1756717292065,5.57924707,203.37,203.33,4.91811341]
[1756717292278,5.57924707,203.34,203.33,4.91811341]
[1756717292783,0.51,203.36,203.33,4.91811341]
[1756717292784,5.60924707,203.35,203.33,4.91811341]
[1756717293765,5.60924707,203.35,203.32,12.29564632]
[1756717293967,5.57924707,203.33,203.31,4.91859721]
[1756717294178,5.57924707,203.32,203.31,4.91859721]
[1756717295584,5.57924707,203.32,203.26,12.29932356]
[1756717295776,5.57924707,203.29,203.26,12.29932356]
[1756717295970,5.57924707,203.29,203.26,17.2191307]
[1756717296180,5.57924707,203.31,203.27,0.72]
[1756717296370,5.57924707,203.31,203.28,0.72]
[1756717296873,5.57924707,203.32,203.29,0.72]
[1756717297071,5.57924707,203.33,203.3,0.72]
[1756717297983,5.57924707,203.33,203.31,4.91859721]
[1756717298286,0.03,203.35,203.32,0.72]
[1756717299167,0.03,203.35,203.33,0.72]
[1756717299989,0.03,203.35,203.34,5.63787154]
[1756717300379,0.03,203.35,203.34,4.91787154]
[1756717301593,5.60924707,203.35,203.34,4.91787154]
[1756717301892,6.11924707,203.35,203.34,4.91787154]
[1756717302103,6.11924707,203.35,203.29,4.91908111]
[1756717302297,5.57924707,203.3,203.29,4.91908111]
[1756717302495,5.57924707,203.33,203.29,17.93678389]
[1756717302702,5.57924707,203.34,203.3,0.72]
[1756717302884,5.57924707,203.34,203.29,17.21678389]
[1756717303206,5.60924707,203.35,203.31,0.72]
[1756717303408,0.03,203.35,203.32,0.72]
[1756717303705,0.03,203.35,203.3,5.57924707]
[1756717303913,0.03,203.35,203.33,0.72]
[1756717304300,0.03,203.35,203.34,4.91787154]
[1756717305183,0.03,203.35,203.34,5.63787154]
[1756717305570,0.03,203.35,203.34,4.91787154]
[1756717306202,0.03,203.35,203.33,4.91811341]
[1756717306401,5.57924707,203.34,203.33,4.91811341]
[1756717306884,0.03,203.35,203.33,5.63811341]
[1756717307903,5.60924707,203.35,203.33,5.63811341]
[1756717308113,5.57924707,203.34,203.33,4.91811341]
[1756717308318,5.57924707,203.34,203.31,17.2146766]
[1756717308484,5.57924707,203.32,203.31,17.2146766]
[1756717309297,5.57924707,203.33,203.31,17.2146766]
[1756717309587,5.57924707,203.32,203.31,4.91859721]
[1756717310188,19.68484108,203.32,203.26,4.91980714]
[1756717310385,5.57924707,203.28,203.26,4.91980714]
[1756717310609,0.03,203.35,203.26,17.21932499]
[1756717310792,5.57924707,203.3,203.26,17.21932499]
[1756717310998,5.57924707,203.3,203.26,17.93932499]
[1756717311200,5.57924707,203.29,203.26,17.93932499]
[1756717311790,5.57924707,203.29,203.27,0.69]
[1756717312115,5.57924707,203.3,203.28,0.69]
[1756717312411,5.57924707,203.31,203.29,4.91908111]
[1756717312615,5.57924707,203.31,203.29,5.03908111]
[1756717312815,5.57924707,203.3,203.29,5.03908111]
[1756717313614,5.57924707,203.31,203.29,5.72908111]
[1756717313816,5.57924707,203.31,203.29,5.03908111]
[1756717315189,19.68484108,203.3,203.29,0.12]
[1756717315389,58.80484108,203.3,203.29,0.12]
[1756717316117,60.20732253,203.3,203.29,0.12]
[1756717318123,58.30051175,203.3,203.29,0.12]
[1756717319315,58.26051175,203.3,203.29,0.12]
[1756717319904,58.77051175,203.3,203.29,0.12]
[1756717320092,58.26051175,203.3,203.29,0.12]
[1756717321602,58.24051175,203.3,203.29,5.03908111]
[1756717322199,44.64491774,203.31,203.29,5.03908111]
[1756717322401,0.03,203.35,203.3,0.69]
[1756717322713,39.04,203.34,203.3,0.69]
[1756717322915,5.58491774,203.31,203.29,5.03908111]
[1756717323106,5.58491774,203.3,203.29,5.03908111]
[1756717323425,5.58491774,203.31,203.29,5.03908111]
[1756717323720,5.58491774,203.31,203.29,5.72908111]
[1756717323925,19.18051175,203.3,203.29,0.12]
[1756717325823,19.18051175,203.3,203.29,5.03908111]
[1756717326925,19.18051175,203.3,203.29,0.12]
[1756717327229,58.26051175,203.3,203.29,0.12]
[1756717327701,52.67559401,203.3,203.29,0.12]
[1756717327900,58.26051175,203.3,203.29,0.12]
[1756717329124,52.67559401,203.3,203.29,0.12]
[1756717329313,58.26051175,203.3,203.29,0.12]
[1756717329508,52.67559401,203.3,203.29,0.12]
[1756717329732,58.26051175,203.3,203.29,0.12]
[1756717329925,58.77051175,203.3,203.29,0.12]
[1756717330120,58.26051175,203.3,203.29,0.12]
[1756717332427,63.32151247,203.3,203.29,0.12]
[1756717332608,63.83151247,203.3,203.29,0.12]
[1756717333010,69.41643021,203.3,203.29,0.12]
[1756717333804,58.91267332,203.3,203.29,0.12]
[1756717334002,58.40267332,203.3,203.29,0.12]
[1756717334731,58.91267332,203.3,203.29,0.12]
[1756717335107,19.18051175,203.3,203.29,0.12]
[1756717335428,58.85267332,203.3,203.29,0.12]
[1756717335625,69.35643021,203.3,203.29,0.12]
[1756717335924,58.85267332,203.3,203.29,0.12]
[1756717336506,19.18051175,203.3,203.29,0.12]
[1756717336701,13.59559401,203.3,203.29,5.72908111]
[1756717336933,5.58491774,203.31,203.29,5.72908111]
[1756717337151,5.58491774,203.32,203.3,0.69]
[1756717337507,5.58491774,203.31,203.29,5.03908111]
[1756717337710,5.58491774,203.3,203.29,5.03908111]
[1756717338134,3.48864379,203.3,203.29,5.72908111]
[1756717338531,3.48864379,203.32,203.29,5.72908111]
[1756717338734,3.48864379,203.32,203.31,4.91859721]
[1756717338922,3.48864379,203.32,203.3,0.69]
[1756717339117,3.48864379,203.31,203.3,4.91868905]
[1756717339337,3.48864379,203.32,203.3,4.91868905]
[1756717339639,3.48864379,203.31,203.3,4.91868905]
[1756717340226,3.48864379,203.31,203.3,5.60868905]
[1756717340433,3.48864379,203.31,203.3,0.69]
[1756717340652,3.48864379,203.31,203.29,5.03902679]
[1756717340653,42.50864379,203.31,203.29,5.03902679]
[1756717340848,3.48864379,203.3,203.29,5.72902679]
[1756717341217,39.0,203.31,203.29,5.72902679]
[1756717341424,3.48864379,203.3,203.29,0.12]
[1756717341739,26.0,203.28,203.26,0.12]
[1756717341928,82.26639937,203.27,203.19,0.12]
[1756717342116,17.0842378,203.25,203.19,0.12]
[1756717342312,56.3042378,203.25,203.19,0.12]
[1756717342521,56.8142378,203.25,203.19,0.12]
[1756717343134,61.734287,203.25,203.19,5.04148666]
[1756717343328,61.734287,203.25,203.19,0.12]
[1756717343654,39.73775558,203.23,203.19,0.12]
[1756717343857,85.93504316,203.23,203.19,0.12]
[1756717344164,85.05785811,203.23,203.19,0.12]
[1756717344529,79.46775558,203.23,203.19,0.12]
[1756717344746,85.05785811,203.23,203.19,0.12]
[1756717345053,89.97839149,203.23,203.19,0.12]
[1756717345346,85.05785811,203.23,203.19,0.12]
[1756717345546,84.38569654,203.23,203.19,5.72127447]
[1756717347044,84.38569654,203.23,203.21,4.92095015]
[1756717347045,39.59559401,203.23,203.21,4.92095015]
[1756717347240,84.38569654,203.23,203.22,0.8]
[1756717347449,84.38569654,203.23,203.22,0.12]
[1756717348142,58.38569654,203.23,203.22,5.72077551]
[1756717348356,58.38569654,203.23,203.22,0.12]
[1756717348566,58.38569654,203.23,203.22,0.8]
[1756717349638,58.38569654,203.23,203.22,0.12]
[1756717350960,13.59559401,203.26,203.22,5.72077551]
[1756717351168,44.75010253,203.26,203.23,0.68]
[1756717351461,5.59010253,203.24,203.23,5.60053338]
[1756717351659,5.59010253,203.25,203.23,4.92053338]
[1756717352138,44.75010253,203.26,203.24,0.68]
[1756717352758,39.16,203.26,203.25,0.68]
[1756717352962,5.59010253,203.26,203.25,0.68]
[1756717353166,52.77559401,203.27,203.25,0.68]
[1756717353353,5.59010253,203.26,203.23,4.92053338]
[1756717353973,5.59010253,203.25,203.24,0.68]
[1756717354170,5.59010253,203.25,203.23,4.92053338]
[1756717354782,5.59010253,203.25,203.24,0.68]
[1756717354960,5.59010253,203.26,203.24,0.68]
[1756717355578,5.59010253,203.26,203.25,0.68]
[1756717355857,5.59010253,203.26,203.25,5.6000492]
[1756717356088,13.59559401,203.25,203.22,5.04077403]
[1756717356382,5.59010253,203.23,203.22,5.04077403]
[1756717356966,5.59010253,203.23,203.22,5.72077403]
[1756717357583,0.51,203.33,203.22,5.72077403]
[1756717357760,5.59010253,203.27,203.23,0.68]
[1756717358079,13.59559401,203.3,203.24,5.59010253]
[1756717358281,39.12,203.29,203.25,0.68]
[1756717359271,5.59010253,203.27,203.24,0.68]
[1756717359483,109.67456292,203.31,203.25,0.68]
[1756717359660,44.71010253,203.3,203.25,0.68]
[1756717359856,44.71010253,203.3,203.26,4.91980714]
[1756717359857,5.59010253,203.29,203.26,4.91980714]
[1756717360058,5.59010253,203.27,203.26,4.91980714]
[1756717360352,109.67456292,203.31,203.26,5.59980714]
[1756717360558,0.03,203.32,203.27,0.68]
[1756717360886,44.76010253,203.32,203.27,0.68]
[1756717361264,0.03,203.32,203.27,6.27010253]
[1756717361478,0.03,203.32,203.28,0.68]
[1756717361678,5.62010253,203.32,203.28,0.68]
[1756717362274,5.59010253,203.31,203.29,5.59908111]
[1756717362587,5.59010253,203.31,203.3,0.68]
[1756717362955,5.59010253,203.31,203.29,4.91908111]
[1756717363284,13.59559401,203.29,203.27,4.91936996]
[1756717363481,5.59010253,203.28,203.27,4.91936996]
[1756717364074,5.59010253,203.28,203.25,4.9200492]
[1756717364277,13.59559401,203.29,203.25,5.6000492]
[1756717364575,5.59010253,203.26,203.25,5.6000492]
[1756717364994,5.59010253,203.27,203.25,5.6000492]
[1756717365163,5.59010253,203.27,203.26,0.68]
[1756717365963,3.48980783,203.27,203.26,5.59980714]
[1756717366373,3.48980783,203.27,203.26,4.91980714]
[1756717366662,3.48980783,203.27,203.26,5.59980714]
[1756717367078,3.48980783,203.29,203.26,5.59980714]
[1756717367278,0.03,203.32,203.27,0.68]
[1756717367463,0.03,203.32,203.27,4.16980783]
[1756717367988,3.51980783,203.32,203.28,0.68]
[1756717368176,3.51980783,203.32,203.29,0.68]
[1756717368385,3.51980783,203.32,203.26,20.70913282]
[1756717368696,3.51980783,203.32,203.27,4.16980783]
[1756717368866,3.51980783,203.32,203.28,0.68]
[1756717369381,3.51980783,203.32,203.29,0.68]
[1756717369567,3.48980783,203.3,203.26,17.21932499]
[1756717369770,3.48980783,203.28,203.26,17.89932499]
[1756717370077,3.48980783,203.28,203.27,0.68]
[1756717370261,3.48980783,203.31,203.27,17.89847788]
[1756717370468,3.48980783,203.31,203.28,0.68]
[1756717370788,3.48980783,203.31,203.29,0.68]
[1756717371086,0.03,203.32,203.29,0.68]
[1756717371385,3.48980783,203.31,203.3,4.91883915]
[1756717371589,3.51980783,203.32,203.3,4.91883915]
[1756717373470,3.51980783,203.32,203.3,5.56883915]
[1756717374394,0.03,203.32,203.31,0.65]
[1756717374771,0.03,203.34,203.31,0.65]
[1756717375078,0.03,203.34,203.32,3.48980783]
[1756717375593,0.03,203.34,203.33,0.65]
[1756717376163,3.51980783,203.34,203.3,4.91883915]
[1756717376369,3.48980783,203.31,203.3,4.91883915]
[1756717376586,3.48980783,203.31,203.3,5.56883915]
[1756717377178,0.03,203.34,203.3,5.56883915]
[1756717377380,3.48980783,203.32,203.3,5.56883915]
[1756717377588,3.48980783,203.31,203.3,5.56883915]
[1756717377976,0.03,203.34,203.3,5.56883915]
[1756717378176,5.58115951,203.31,203.3,5.56883915]
[1756717378483,5.58115951,203.31,203.3,4.91883915]
[1756717379194,5.58115951,203.31,203.3,5.56883915]
[1756717379774,5.58115951,203.32,203.3,5.56883915]
[1756717380082,5.58115951,203.32,203.31,0.65]
[1756717380402,5.58115951,203.32,203.31,4.91859721]
[1756717381100,5.58115951,203.32,203.27,12.94869552]
[1756717381278,5.58115951,203.28,203.25,0.65]
[1756717381467,5.58115951,203.28,203.25,4.9200492]
[1756717381672,5.58115951,203.29,203.25,17.2201722]
[1756717381892,5.58115951,203.29,203.26,0.65]
[1756717382098,5.58115951,203.28,203.26,0.65]
[1756717382792,13.59559401,203.33,203.27,0.65]
[1756717382993,5.58115951,203.32,203.27,0.65]
[1756717383194,5.58115951,203.33,203.27,6.23115951]
[1756717383381,5.58115951,203.33,203.28,0.65]
[1756717383581,5.58115951,203.33,203.29,0.65]
[1756717383796,5.58115951,203.33,203.3,0.65]
[1756717383984,5.58115951,203.31,203.27,0.65]
[1756717384187,5.58115951,203.3,203.27,0.65]
[1756717384406,5.58115951,203.3,203.25,77.340123]
[1756717384407,5.58115951,203.3,203.28,0.65]
[1756717384584,5.61115951,203.32,203.29,0.65]
[1756717384784,5.61115951,203.32,203.27,17.21847788]
[1756717384984,0.03,203.32,203.3,0.65]
[1756717385389,0.03,203.32,203.31,0.65]
[1756717385707,0.03,203.34,203.31,6.23115951]
[1756717386006,0.03,203.34,203.32,6.23115951]
[1756717386205,0.03,203.35,203.33,5.58115951]
[1756717386405,0.03,203.35,203.33,11.84231951]
[1756717386708,0.03,203.37,203.34,6.23115951]
[1756717386884,0.03,203.37,203.35,4.9176297]
[1756717387208,0.03,203.37,203.35,5.5676297]
[1756717387578,0.03,203.37,203.35,4.9176297]
[1756717387881,0.03,203.37,203.36,0.65]
[1756717388076,0.03,203.37,203.35,4.9176297]
[1756717388290,5.58115951,203.36,203.33,4.91787489]
[1756717388496,5.58115951,203.34,203.32,10.49948328]
[1756717388701,5.58115951,203.33,203.32,10.49948328]
[1756717388890,5.58115951,203.33,203.31,4.91859721]
[1756717389089,5.58115951,203.33,203.31,5.56859721]
[1756717389393,5.58115951,203.34,203.31,5.56859721]
[1756717390303,13.62559401,203.37,203.33,4.91811341]
[1756717390505,5.61115951,203.37,203.34,0.65]
[1756717390716,0.03,203.37,203.34,6.23115951]
[1756717390890,1e-08,203.37,203.36,5.58115951]
[1756717391400,1e-08,203.37,203.36,6.23115951]
[1756717392723,1e-08,203.37,203.36,11.14854739]
[1756717393177,1e-08,203.38,203.36,50.16854739]
[1756717393380,1e-08,203.38,203.37,6.37332108]
[1756717393597,1e-08,203.38,203.37,45.25115951]
[1756717394818,1e-08,203.38,203.37,50.16830559]
[1756717395313,5.58115951,203.46,203.37,87.04690125]
[1756717395489,5.58115951,203.46,203.39,5.58115951]
[1756717395692,5.58115951,203.46,203.4,0.65]
[1756717396706,0.1,203.48,203.42,4.91593746]
[1756717396918,5.58115951,203.46,203.42,4.91593746]
[1756717397099,5.58115951,203.46,203.42,5.56593746]
[1756717397500,5.68115951,203.48,203.43,0.65]
[1756717397690,5.68115951,203.48,203.44,0.65]
[1756717398105,3.58241728,203.48,203.44,0.65]
[1756717398296,3.58241728,203.48,203.45,0.65]
[1756717399087,3.58241728,203.48,203.46,4.914971]
[1756717399694,3.48241728,203.47,203.42,12.93984367]
[1756717399898,3.48241728,203.45,203.42,12.93984367]
[1756717400186,3.48241728,203.46,203.43,5.56569581]
[1756717400509,3.48241728,203.47,203.44,0.65]
[1756717400882,3.58241728,203.48,203.43,17.20493535]
[1756717401088,0.1,203.48,203.46,4.914971]
[1756717402214,3.99241728,203.47,203.43,4.91569581]
[1756717402402,3.48241728,203.45,203.43,43.89569581]
[1756717402610,3.48241728,203.45,203.43,44.59569581]
[1756717403084,3.48241728,203.45,203.41,4.91617914]
[1756717403085,3.48241728,203.44,203.41,4.91617914]
[1756717403290,3.48241728,203.43,203.41,4.91617914]
[1756717403810,3.48241728,203.44,203.41,4.91617914]
[1756717404110,3.48241728,203.44,203.42,0.7]
[1756717404513,0.1,203.48,203.42,0.7]
[1756717404695,3.48241728,203.45,203.41,17.206627]
[1756717404900,3.48241728,203.45,203.41,17.906627]
[1756717405219,3.48241728,203.44,203.41,17.206627]
[1756717405607,3.48241728,203.45,203.42,0.7]
[1756717407114,3.48241728,203.45,203.43,4.91569581]
[1756717407314,0.61,203.48,203.43,5.61569581]
[1756717407315,3.48241728,203.46,203.43,5.61569581]
[1756717407500,3.58241728,203.48,203.44,0.7]
[1756717407702,0.1,203.48,203.45,0.7]
[1756717408017,0.1,203.48,203.46,26.0]
[1756717408216,0.1,203.48,203.47,0.7]
[1756717409217,1e-08,203.48,203.47,48.05714672]
[1756717409918,1e-08,203.48,203.47,5.61472944]
[1756717410104,1e-08,203.48,203.47,44.57472944]
[1756717410301,1e-08,203.48,203.47,5.61472944]
[1756717410502,1e-08,203.48,203.47,44.57472944]